Workbook

Sheet Version
A2: This Pricing Schedule is based on the COTO Draft Standard (DS) October 2020, and updated for the Works ProForma Book 3 - 2022.1 – June 2022 version saved in EDMS folder 7475454
F149: metre (m)
F150: metre (m)
A155: C2.3.27 | E155: Extra over item C2.3.21 for encasing (wrapping) joints
B156: C2.3.27.1 | E156: State for each water main the number of joints to be encased (wrapped)
E157: State diameter
E158: State diameter
A159: C2.3.28 | E159: Installation of hydrants and water meters
B160: C2.3.28.1 | E160: Describe hydrant type
B161: C2.3.28.2 | E161: Describe water meter type
B162: C2.3.28.3 | E162: Etc., insert additional items as required
A163: C2.3.29 | E163: Bedding for water mains (Class B and C) and fill blanket compacted to 90 % of MDD (100 % for sand)
B164: C2.3.29.1
C166: (c)
C167: (d)
C168: (e)
B169: C2.3.29.2
C171: (c)
C172: (d)
C173: (e)

Sheet C1.2
A1: CONTRACT SANRAL N.012-150-2020/1
A2: FOR RESURFACING OF NATIONAL ROUTE N12 SECTION 15 FROM WOLMARANSSTAD (KM 0.0) TO KM 46.0
A3: C1.2 | E3: GENERAL REQUIREMENTS AND PROVISIONS
A4: ITEM | D4: DESCRIPTION | E4: UNIT | F4: QTY | G4: RATE | H4: AMT
A7: C1.2.1 | D7: Environmental Management
B8: C1.2.1.1 | D8: Monitoring of compliance with and reporting on the EMP | E8: month | F8: 19 | G8: 0 | H8: =F8*G8 -> 0
B9: C1.2.1.2 | D9: Dedicated environmental officer | E9: month | F9: 19 | G9: 0 | H9: =F9*G9 -> 0
A10: C1.2.2 | D10: Programming and Reporting
B11: C1.2.2.3 | D11: Submission of a Scheme 2 Initial Programme | E11: lump sum | F11: lump | G11: sum | H11: 0
B12: C1.2.2.4 | D12: Submission of a Scheme 2 Full Programme | E12: lump sum | F12: lump | G12: sum | H12: 0
B13: C1.2.2.5 | D13: Reviewing and updating a Scheme 2 programme every month | E13: month | F13: 18 | G13: 0 | H13: =F13*G13 -> 0
B14: C1.2.2.6 | D14: Preparation and submission of all information and reports specified in the Contract Documentation | E14: month | F14: 18 | G14: 0 | H14: =F14*G14 -> 0
B15: C1.2.3.13 | D15: Liaison with the routine road maintenance contractor | E15: month | F15: 19 | G15: 0 | H15: =F15*G15 -> 0
A16: C1.2.3 | D16: Routine road maintenance of existing public roads within the Site of the Works or other public roads outside the Site of the Works which are used as detours
B17: C1.2.3.6 | D17: Base and/or surface patching using cold premixed asphalt | E17: kilogram (kg) | F17: 200 | G17: 0 | H17: =F17*G17 -> 0
B18: C1.2.3.11 | D18: Other road maintenance work ordered by the Engineer | E18: provisional sum | F18: Prov | G18: Sum | H18: R100,000.00
B19: C1.2.3.12 | D19: Handling cost, profit and all other charges in respect of item C1.2.3.11 | E19: percentage (%) | F19: =H18 -> R100,000.00 | G19: 0.00% | H19: =G19*F19 -> 0
B20: C1.2.3.13 | D20: Liaison with the routine road maintenance contractor | E20: month | F20: 21 | G20: 0 | H20: =F20*G20 -> 0
A21: C1.2.4 | D21: Stakeholder liaison | E21: month | F21: 20 | G21: 0 | H21: =F21*G21 -> 0
A22: C1.2.5 | D22: Safety
B23: C1.2.5.1 | D23: Health and safety plan | E23: lump sum | F23: lump | G23: sum | H23: 0
B24: C1.2.5.2 | D24: Implementation of health and safety plan | E24: month | F24: 18 | G24: 0 | H24: =F24*G24 -> 0
A25: PC1.2.7 | D25: Road safety audits
B26: C1.2.7.1 | D26: Stage 4 work zone traffic management audit | E26: provisional sum | F26: Prov | G26: Sum | H26: R80,000.00
B27: C1.2.7.2 | D27: Handling cost, profit and all other charges in respect of item C1.2.7.1 | E27: percentage (%) | F27: =H26 -> R80,000.00 | G27: 0.00% | H27: =G27*F27 -> 0
B28: C1.2.7.3 | D28: Stage 5 pre-opening stage traffic safety audit | E28: provisional sum | F28: Prov | G28: Sum | H28: R80,000.00
B29: C1.2.7.4 | D29: Handling cost, profit and all other charges in respect of item C1.2.7.3 | E29: percentage (%) | F29: =H28 -> R80,000.00 | G29: 0.00% | H29: =G29*F29 -> 0
A30: C1.2.8 | D30: Dayworks
B31: C1.2.8.1 | D31: Personnel
C32: (a) | D32: Unskilled labourer | E32: hour (h) | F32: 200 | G32: 0 | H32: =F32*G32 -> 0
C33: (b) | D33: Semi-skilled labourer | E33: hour (h) | F33: 150 | G33: 0 | H33: 0
B34: C1.2.8.2 | D34: Construction equipment (specify size and/or model number)
C35: (a) | D35: Motor grader | E35: hour (h) | F35: 50 | G35: 0 | H35: =F35*G35 -> 0
C36: (b) | D36: Vibratory roller | E36: hour (h) | F36: 50 | G36: 0 | H36: 0
C37: (c) | D37: Pneumatic roller | E37: hour (h) | F37: 50 | G37: 0 | H37: 0
C38: (d) | D38: Front end loader | E38: hour (h) | F38: 20 | G38: 0 | H38: 0
C39: (e) | D39: Tractor loader backhoe | E39: hour (h) | F39: 50 | G39: 0 | H39: 0
C40: (f) | D40: Excavator | E40: hour (h) | F40: 50 | G40: 0 | H40: 0
C41: (h) | D41: Milling Machine (Size as required requested by the Engineer) | E41: hour (h) | F41: 30 | G41: 0 | H41: 0
B42: C1.2.8.3 | D42: Vehicles (specify size)
C43: (c) | D43: Dump truck - 10m3 Capacity | E43: kilometre (km) | F43: 100 | G43: 0 | H43: =F43*G43 -> 0
C44: (d) | D44: Lowbed establishment for plant which can not be driven on open road, which will require the Engineer's approval and must be substaintiated with an invoice | E44: kilometre (km) | F44: 100 | G44: 0 | H44: =F44*G44 -> 0
B45: C1.2.8.4 | D45: Materials
C46: (a) | D46: Procurement of materials | E46: provisional sum | F46: Prov | G46: Sum | H46: R65,000.00
C47: (b) | D47: Contractor's handling costs, profit and all other charges in respect of item C1.2.8.4(a) | E47: percentage (%) | F47: =H46 -> R65,000.00 | G47: 0.00% | H47: =G47*F47 -> 0
B48: C1.2.9.1 | D48: Disposal of non-useable assets identified in the Contract Documentation at time of tender (list items and quantity) | E48: rate (per asset)
C49: (a) | D49: Guard rails | E49: metre (m) | F49: 20 | G49: 0 | H49: =F49*G49 -> 0
C50: (b) | D50: Road Studs | E50: number(No.) | F50: 5550 | G50: 0 | H50: =F50*G50 -> 0
B51: C1.2.9.2 | D51: Disposal of non-useable assets not identified at time of tender | E51: provisional sum | F51: Prov | G51: Sum | H51: R50,000.00
B52: C1.2.9.3 | D52: Handling cost, profit and all other charges in respect of item C1.2.9.2 | E52: percentage (%) | F52: =H51 -> R50,000.00 | G52: 0.00% | H52: =G52*F52 -> 0
A53: PC1.2.10 | D53: Dispute Adjudication Board (DAB)
B54: C1.2.10.1 | D54: Employer’s contribution to DAB (50%) | E54: prime cost (PC) sum | F54: Prime | G54: Cost | H54: R200,000.00
A58: TOTAL CARRIED FORWARD TO SUMMARY | H58: =SUM(H7:H57) -> R575,000.00

Sheet C1.3
A1: ='C1.2'!A1 -> CONTRACT SANRAL N.012-150-2020/1
A2: ='C1.2'!A2 -> FOR RESURFACING OF NATIONAL ROUTE N12 SECTION 15 FROM WOLMARANSSTAD (KM 0.0) TO KM 46.0
A3: C1.3 | E3: CONTRACTOR’S SITE ESTABLISHMENT AND GENERAL OBLIGATIONS
A4: ITEM | D4: DESCRIPTION | E4: UNIT | F4: QTY | G4: RATE | H4: AMT
A7: PC1.3.1 | D7: The Contractor's general obligations
B8: C1.3.1.1 | D8: Fixed obligations | E8: lump sum | F8: lump | G8: sum | H8: 0
B9: C1.3.1.2 | D9: Value-related obligations | E9: lump sum | F9: lump | G9: sum | H9: 0
B10: C1.3.1.3 | D10: Time-related obligations
C11: (a) | D11: Mobilisation period | E11: month | F11: 3 | G11: 0 | H11: =F11*G11 -> 0
C12: (b) | D12: Execution of the works | E12: month | F12: 18 | G12: 0 | H12: 0
B13: C1.3.1.4 | D13: Suspension Cost
C14: (a) | D14: De-establishment | E14: number | F14: 1 | G14: 0 | H14: =F14*G14 -> 0
C15: (b) | D15: Re-establishment | E15: number | F15: 1 | G15: 0 | H15: 0
C16: (c) | D16: Suspension period | E16: month | F16: 1 | G16: 0 | H16: 0
C17: (d) | D17: Engineer's cost | E17: prime cost (PC) sum | F17: prime | G17: cost | H17: R250,000.00
A18: C1.3.2 | D18: Contract sign boards | E18: square metre (m2) | F18: 30 | G18: 0 | H18: =F18*G18 -> 0
A22: TOTAL CARRIED FORWARD TO SUMMARY | H22: =SUM(H7:H21) -> R250,000.00

Sheet C1.4
A1: ='C1.3'!A1 -> CONTRACT SANRAL N.012-150-2020/1
A2: ='C1.3'!A2 -> FOR RESURFACING OF NATIONAL ROUTE N12 SECTION 15 FROM WOLMARANSSTAD (KM 0.0) TO KM 46.0
A3: C1.4 | D3: FACILITIES FOR THE ENGINEER
A4: ITEM | C4: DESCRIPTION | D4: UNIT | E4: QTY | F4: RATE | G4: AMT
A7: C1.4.1 | C7: Site accommodation
B8: C1.4.1.1 | C8: Offices and conference room | D8: square metre (m2) | E8: 130 | F8: 0 | G8: =E8*F8 -> 0
B9: C1.4.1.2 | C9: Laboratories | D9: square metre (m2) | E9: 130 | F9: 0 | G9: 0
B10: C1.4.1.3 | C10: Open concrete working floors and verandas | D10: square metre (m2) | E10: 120 | F10: 0 | G10: 0
B11: C1.4.1.4 | C11: Roofs over open concrete working floors and verandas | D11: square metre (m2) | E11: 140 | F11: 0 | G11: 0
B12: C1.4.1.5 | C12: Store rooms inside the laboratory | D12: square metre (m2) | E12: 20 | F12: 0 | G12: 0
B13: C1.4.1.6 | C13: Car ports | D13: number (No.) | E13: 6 | F13: 0 | G13: 0
B14: C1.4.1.7 | C14: Ablution unit (As per COTO specification requirements to included a toilet and wash basin outside the Toilet per unit) | D14: number (No.) | E14: 4 | F14: 0 | G14: 0
B15: C1.4.1.8 | C15: Change room with a shower | D15: number (No.) | E15: 2 | F15: 0 | G15: 0
B16: C1.4.1.9 | C16: Kitchen unit (As per COTO Specification requirements to include a refridgerator, Microwave, Kettle, wash basin, cupboard with a table top and cutlery) | D16: number (No.) | E16: 2 | F16: 0 | G16: 0
A17: C1.4.2 | C17: Items measured by area
B18: C1.4.2.1 | C18: Shelving as specified, complete with brackets | D18: square metre (m2) | G18: =E18*F18 -> 0
B19: C1.4.2.2 | C19: Work benches with a concrete slab top | D19: square metre (m2) | E19: 10 | F19: 0 | G19: 0
B20: C1.4.2.3 | C20: Work-benches with a wooden top | D20: square metre (m2) | E20: 10 | F20: 0 | G20: 0
B21: C1.4.2.4 | C21: Constant-temperature baths of concrete and/or plastered brick | D21: square metre (m2) | E21: 1 | F21: 0 | G21: 0
B22: C1.4.2.5 | C22: Concrete footings and pedestals for laboratory equipment | D22: square metre (m2) | E22: 10 | F22: 0 | G22: 0
B23: C1.4.2.7 | C23: Venetian blinds | D23: square metre (m2) | E23: 15 | F23: 0 | G23: 0
B24: C1.4.2.8 | C24: Notice boards | D24: square metre (m2) | E24: 4 | F24: 0 | G24: 0
B25: C1.4.2.9 | C25: White boards | D25: square metre (m2) | E25: 10 | F25: 0 | G25: 0
A26: C1.4.3 | C26: Items measured by number
B27: C1.4.3.1 | C27: Office swivel chair | D27: number (No.) | E27: 2 | F27: 0 | G27: =E27*F27 -> 0
B28: C1.4.3.2 | C28: Office chair | D28: number (No.) | E28: 25 | F28: 0 | G28: 0
B29: C1.4.3.4 | C29: Laboratory high chair | D29: number (No.) | E29: 20 | F29: 0 | G29: 0
B30: C1.4.3.5 | C30: Office desk with 3 drawers (at least one lockable drawer) | D30: number (No.) | E30: 6 | F30: 0 | G30: 0
B31: C1.4.3.7 | C31: Drawing table | D31: number (No.) | G31: 0
B32: C1.4.3.8 | C32: Conference table | D32: number (No.) | E32: 1 | F32: 0 | G32: 0
B33: C1.4.3.11 | C33: General purpose steel cabinet with shelves | D33: number (No.) | E33: 4 | F33: 0 | G33: 0
B34: C1.4.3.13 | C34: 220/250 volt power outlet plug point | D34: number (No.) | E34: 10 | F34: 0 | G34: 0
B35: C1.4.3.15 | C35: Single 1500m, 58 watt fluorescent tube ceiling light | D35: number (No.) | E35: 15 | F35: 0 | G35: 0
B36: C1.4.3.19 | C36: Wash-hand basin | D36: number (No.) | E36: 3 | F36: 0 | G36: 0
B37: C1.4.3.20 | C37: Laboratory basin | D37: number (No.) | E37: 5 | F37: 0 | G37: 0
B38: C1.4.3.21 | C38: Extractor fan | D38: number (No.) | E38: 2 | F38: 0 | G38: 0
B39: C1.4.3.22 | C39: Fume cupboard | D39: number (No.) | E39: 1 | F39: 0 | G39: 0
B40: C1.4.3.23 | C40: Fire extinguisher 9,0 kg, dry powder type | D40: number (No.) | E40: 3 | F40: 0 | G40: 0
B41: C1.4.3.24 | C41: Air-conditioning unit | D41: number (No.) | E41: 5 | F41: 0 | G41: 0
B42: C1.4.3.26 | C42: Concrete specimen curing bath | D42: number (No.) | E42: 1 | F42: 0 | G42: 0
B43: C1.4.3.27 | C43: Waste paper basket | D43: number (No.) | E43: 5 | F43: 0 | G43: 0
B44: C1.4.3.29 | C44: A3 / A4 colour printer, copier, scanner | D44: number (No.) | E44: 1 | F44: 0 | G44: 0
B45: C1.4.3.31 | C45: Rain gauge | D45: number (No.) | E45: 2 | F45: 0 | G45: 0
B46: C1.4.3.33 | C46: Digital thermometer | D46: number (No.) | E46: 1 | F46: 0 | G46: 0
B47: C1.4.3.35 | C47: 3,0m aluminium straight edge complete with two measuring wedges | D47: number (No.) | E47: 1 | F47: 0 | G47: 0
B48: C1.4.3.36 | C48: Measuring wheel | D48: number (No.) | E48: 2 | F48: 0 | G48: 0
B49: C1.4.3.37 | C49: First aid kit | D49: number (No.) | E49: 2 | F49: 0 | G49: 0
A50: C1.4.4 | C50: Prime cost items
B51: C1.4.4.5 | C51: The provision of internet connectivity and WiFi data for Engineer’s site staff | D51: prime cost (PC) sum | E51: prime | F51: cost | G51: R65,000.00
B52: C1.4.4.6 | C52: Handling costs and profit in respect of item C1.4.4.5 | D52: percentage (%) | E52: =G51 -> R65,000.00 | F52: 0.00% | G52: =E52*F52 -> 0
B53: C1.4.4.7 | C53: The provision of paper and ink for a combination colour printer/copier/scanner | D53: prime cost (PC) sum | E53: prime | F53: cost | G53: R15,000.00
B54: C1.4.4.8 | C54: Handling costs and profit in respect of item C1.4.4.7 | D54: percentage (%) | E54: =G53 -> R15,000.00 | F54: 0.00% | G54: =E54*F54 -> 0
B55: C1.4.4.9 | C55: The provision of a complete 220/250 volt single phase electrical power installation, including all poles, insulators, wiring, switchboards, mains connections, meters etc. | D55: prime cost (PC) sum | E55: prime | F55: cost | G55: R20,000.00
B56: C1.4.4.10 | C56: Handling costs and profit in respect of item C1.4.4.9 | D56: percentage (%) | E56: =G55 -> R20,000.00 | F56: 0.00% | G56: =E56*F56 -> 0
B57: C1.4.4.11 | C57: The provision of a complete 440/231 volt three phase electrical power installation, including all poles, insulators, wiring, switchboards, mains connections, meters etc. | D57: prime cost (PC) sum | E57: prime | F57: cost | G57: R20,000.00
B58: C1.4.4.12 | C58: Handling costs and profit in respect of item C1.4.4.11 | D58: percentage (%) | E58: =G57 -> R20,000.00 | F58: 0.00% | G58: =E58*F58 -> 0
B59: C1.4.4.13 | C59: Provision of a 440/231 volt three phase electricity generator if electricity from a power supply authority is not available on site | D59: prime cost (PC) sum | E59: prime | F59: cost | G59: R20,000.00
B60: C1.4.4.14 | C60: Handling costs and profit in respect of item C1.4.4.13 | D60: percentage (%) | E60: =G59 -> R20,000.00 | F60: 0.00% | G60: =E60*F60 -> 0
A61: C1.4.5 | C61: Services at site offices, laboratories and site accommodation
B62: C1.4.5.1 | C62: Fixed costs | D62: lump sum | E62: lump | F62: sum | G62: 0
B63: C1.4.5.2 | C63: Running costs | D63: month | E63: 21 | F63: 0 | G63: =E63*F63 -> 0
A64: C1.4.7 | C64: Site inspection transport
B65: C1.4.7.1 | C65: Provision of a bus, mini-bus or combi van for site inspection purposes (specify type and size of vehicle) | D65: per day | E65: 30 | F65: 0 | G65: =E65*F65 -> 0
B66: C1.4.7.2 | C66: Travel on site | D66: kilometre (km) | E66: 1000 | F66: 0 | G66: =E66*F66 -> 0
A67: C1.4.8 | C67: Site security measures for the Engineer’s facilities
B68: C1.4.8.1 | C68: Supply and installation of all required security measures at the Engineer’s site offices and laboratories | D68: lump sum | E68: lump | F68: sum | G68: 0
B69: C1.4.8.2 | C69: Provision of security guards / watchmen and an armed response service at the Engineer’s site offices and laboratories | D69: month | E69: 21 | F69: 0 | G69: =E69*F69 -> 0
A73: TOTAL CARRIED FORWARD TO SUMMARY | G73: =SUM(G7:G72) -> R140,000.00

Sheet C1.5
A1: ='C1.4'!A1 -> CONTRACT SANRAL N.012-150-2020/1
A2: ='C1.4'!A2 -> FOR RESURFACING OF NATIONAL ROUTE N12 SECTION 15 FROM WOLMARANSSTAD (KM 0.0) TO KM 46.0
A3: C1.5 | F3: ACCOMMODATION OF TRAFFIC
A4: ITEM | E4: DESCRIPTION | F4: UNIT | G4: QTY | H4: RATE | I4: AMT
A7: C1.5.1 | E7: Accommodation of pedestrian and non-motorised traffic
B8: C1.5.1.1 | E8: Accommodation of pedestrian and non-motorised traffic | F8: month | G8: 18 | H8: 0 | I8: =G8*H8 -> 0
A9: C1.5.2 | E9: Accommodation of vehicular traffic | F9: month | G9: 18 | H9: 0 | I9: =G9*H9 -> 0
A10: C1.5.3 | E10: Liaison with traffic authorities | F10: month | G10: 18 | H10: 0 | I10: =G10*H10 -> 0
A11: C1.5.7 | E11: Temporary traffic control facilities
B12: C1.5.7.1 | E12: Delineators including mounting bases and ballast:
C13: (a) | E13: Single sided, reversible left or right (size indicated) | F13: number (No.) | G13: 300 | H13: 0 | I13: =G13*H13 -> 0
C14: (b) | E14: Double sided, reversible left or right (size indicated) | F14: number (No.) | G14: 700 | H14: 0 | I14: =G14*H14 -> 0
B15: C1.5.7.2 | E15: Traffic cones, minimum height 750mm | F15: number (No.) | G15: 50 | H15: 0 | I15: =G15*H15 -> 0
B16: C1.5.7.3 | E16: Flagmen | F16: man-shift | G16: 6300 | H16: 0 | I16: =G16*H16 -> 0
B17: C1.5.7.4 | E17: Traffic controllers | F17: man-shift | G17: 690 | H17: 0 | I17: =G17*H17 -> 0
B18: C1.5.7.5 | E18: Provision of illuminated traffic signs:
C19: (a) | E19: Sign mounted flashing amber lights (2 lights with the specified power supply) mounted on a backing board which is:
D20: (i) | E20: 900mm wide x 150mm high | F20: number (No.) | G20: 10 | H20: 0 | I20: =G20*H20 -> 0
B21: C1.5.7.6 | E21: Maintenance of illuminated traffic signs:
C22: (b) | E22: Flashing LED illuminated arrow board | F22: month | G22: 5 | H22: 0 | I22: =G22*H22 -> 0
B23: C1.5.7.7 | E23: Traffic calming devices:
C24: (a) | E24: 25mm high x 100mm wide asphalt rumble strips | F24: metre (m) | G24: 200 | H24: 0 | I24: =G24*H24 -> 0
C25: (c) | E25: 150mm high x 3m wide asphalt speed control humps | F25: metre (m) | G25: 70 | H25: 0 | I25: 0
B26: C1.5.7.8 | E26: Traffic control stations(2 sets) | F26: month | G26: 6 | H26: 0 | I26: 0
B27: C1.5.7.9 | E27: Cleaning of traffic control facilities | F27: month | G27: 6 | H27: 0 | I27: 0
B28: C1.5.7.10 | E28: Movable barriers | I28: =IF(G28="","",IF(OR(F28="PC Sum",F28="Prov Sum"),G28,G28*H28)) -> 
C29: (a) | E29: Supply to site, initial placement and removal from site of barriers:
D30: (i) | E30: Barriers obtained from Employers Depot:
E31: Concrete NJ Type, 3m long units, located at the kingway store yard | F31: metre (m) | G31: 1,200 | H31: 0 | I31: 0
C32: (b) | E32: Dismantling and re-erecting barriers during the works | F32: metre (m) | G32: 2,600 | H32: 0 | I32: 0
C33: (c) | E33: Supply to site, initial placement and removal from site of terminal section for temporary barriers | F33: number (No.) | G33: 80 | H33: 0 | I33: 0
C34: (d) | E34: Dismantling and re-erecting of terminal section for temporary barriers during the works | F34: number (No.) | G34: 80 | H34: 0 | I34: 0
C35: (e) | E35: Supply to site barrier connectors “fish plates” and bolts for barriers obtained from Employers Depot | F35: number (No.) | G35: 480 | H35: 0 | I35: 0
C36: (f) | E36: Supply to site retroreflective plates for barriers obtained from Employers Depot | F36: number (No.) | G36: 480 | H36: 0 | I36: 0
C37: (g) | E37: Movable barriers (Plastic NJ barriers) | F37: metre (m) | G37: 200 | H37: 0 | I37: 0
B38: C1.5.7.11 | E38: Moveable barricade/road sign combination (Chevron and ROAD CLOSED types) | F38: No | G38: 8 | H38: 0 | I38: 0
A39: C1.5.8 | E39: Traffic safety officer | F39: man-month | G39: 18 | H39: 0 | I39: 0
A40: C1.5.9 | E40: Traffic safety vehicle | F40: month | G40: 18 | H40: 0 | I40: 0
A41: C1.5.11 | E41: Provision of safety equipment for visitors
B42: C1.5.11.1 | E42: Provision of reflective safety vests for visitors | F42: number (No.) | G42: 10 | H42: 0 | I42: =G42*H42 -> 0
A43: C1.5.12 | E43: Additional traffic accommodation facilities ordered by the Engineer:
B44: C1.5.12.1 | E44: Provision of additional traffic accommodation facilities | F44: provisional sum | G44: Prov | H44: Sum | I44: R100,000.00
B45: C1.5.12.2 | E45: Handling cost, profit and all other charges in respect of item C1.5.12.1 | F45: percentage (%) | G45: =I44 -> R100,000.00 | H45: 0.00% | I45: =G45*H45 -> 0
A49: TOTAL CARRIED FORWARD TO SUMMARY | I49: =SUM(I7:I48) -> R100,000.00

Sheet C1.6
A1: ='C1.5'!A1 -> CONTRACT SANRAL N.012-150-2020/1
A2: ='C1.5'!A2 -> FOR RESURFACING OF NATIONAL ROUTE N12 SECTION 15 FROM WOLMARANSSTAD (KM 0.0) TO KM 46.0
A3: C1.6 | D3: CLEARING AND GRUBBING
A4: ITEM | C4: DESCRIPTION | D4: UNIT | E4: QTY | F4: RATE | G4: AMT
A7: C1.6.1 | C7: Clearing
B8: C1.6.1.1 | C8: Clearing with machines and some hand labour where necessary | D8: hectare (ha) | E8: 2 | F8: 0 | G8: =E8*F8 -> 0
A9: C1.6.2 | C9: Grubbing
B10: C1.6.2.1 | C10: Grubbing with machines and some hand labour where necessary | D10: hectare (ha) | E10: 2 | F10: 0 | G10: =E10*F10 -> 0
A11: C1.6.3 | C11: Removal and grubbing of large trees and tree stumps:
B12: C1.6.3.1 | C12: Girth equal to or exceeding 1,0m up to and including 2,0m | D12: number (No.) | E12: 2 | F12: 0 | G12: =E12*F12 -> 0
B13: C1.6.3.2 | C13: Girth exceeding 2,0m up to and including 3,0m | D13: number (No.) | E13: 2 | F13: 0 | G13: =E13*F13 -> 0
B14: C1.6.3.3 | C14: Girth exceeding 3,0m | D14: number (No.) | E14: 2 | F14: 0 | G14: =E14*F14 -> 0
A15: C1.6.7 | C15: Re-clearing of previously cleared areas | D15: hectare (ha) | E15: 1 | F15: 0 | G15: =E15*F15 -> 0
A18: TOTAL CARRIED FORWARD TO SUMMARY | G18: =SUM(G8:G17) -> 0

Sheet C1.7
A1: ='C1.6'!A1 -> CONTRACT SANRAL N.012-150-2020/1
A2: ='C1.6'!A2 -> FOR RESURFACING OF NATIONAL ROUTE N12 SECTION 15 FROM WOLMARANSSTAD (KM 0.0) TO KM 46.0
A3: C1.7 | E3: LOADING AND HAULING
A4: ITEM | D4: DESCRIPTION | E4: UNIT | F4: QTY | G4: RATE | H4: AMT
A7: C1.7.1 | D7: Loading
B8: C1.7.1.1 | D8: Loading from stockpile using machines and some hand labour where necessary | E8: cubic metre (m3) | F8: 14002.2 | G8: 0 | H8: =F8*G8 -> 0
A9: C1.7.2 | D9: Hauling
B10: C1.7.2.1 | D10: Hauling material for use in the Works and off-loading it on the site of the Works:
C11: (a) | D11: Soil, gravel, crushed stone and pavement layer material | E11: cubic metre - kilometre (m3 - km) | F11: 140022 | G11: 0 | H11: =F11*G11 -> 0
B12: C1.7.2.2 | D12: Hauling material to spoil and off-loading it at a designated spoil or stockpile area:
C13: (a) | D13: Cleared and grubbed material (organic matter and all other unsuitable or waste material) | E13: cubic metre - kilometre (m3 - km) | F13: 52800 | G13: 0 | H13: =F13*G13 -> 0
C14: (b) | D14: Soil and gravel material | E14: cubic metre - kilometre (m3 - km) | F14: 3000 | G14: 0 | H14: =F14*G14 -> 0
C15: (c) | D15: Boulders, hard material and concrete | E15: cubic metre - kilometre (m3 - km) | F15: 500 | G15: 0 | H15: =F15*G15 -> 0
A19: TOTAL CARRIED FORWARD TO SUMMARY | H19: =SUM(H8:H18) -> 0

Sheet C2.1
A1: ='C1.7'!A1 -> CONTRACT SANRAL N.012-150-2020/1
A2: ='C1.7'!A2 -> FOR RESURFACING OF NATIONAL ROUTE N12 SECTION 15 FROM WOLMARANSSTAD (KM 0.0) TO KM 46.0
A3: C2.1 | E3: GENERAL REQUIREMENTS AND TRENCHING FOR SERVICES
A4: ITEM | D4: DESCRIPTION | E4: UNIT | F4: QTY | G4: RATE | H4: AMT
A7: C2.1.1 | D7: Location, identification, protection and relocation of existing services
B8: C2.1.1.1 | D8: Contractor’s obligations | E8: lump sum | F8: lump | G8: sum | H8: 0
B9: C2.1.1.4 | D9: Permanent services relocation or protection work by the Contractor | E9: provisional sum | F9: Prov | G9: Sum | H9: R100,000.00
A12: TOTAL CARRIED FORWARD TO SUMMARY | H12: =SUM(H7:H11) -> R100,000.00

Sheet C3.1
A1: ='C2.1'!A1 -> CONTRACT SANRAL N.012-150-2020/1
A2: ='C2.1'!A2 -> FOR RESURFACING OF NATIONAL ROUTE N12 SECTION 15 FROM WOLMARANSSTAD (KM 0.0) TO KM 46.0
A3: C3.1 | E3: DRAINS
A4: ITEM | D4: DESCRIPTION | E4: UNIT | F4: QTY | G4: RATE | H4: AMT
A7: C3.1.1 | D7: Excavation for open drains:
B8: C3.1.1.1 | D8: Excavating all material situated within the following depth ranges below the surface level using conventional methods:
C9: (a) | D9: 0m to 1,5m | E9: cubic metre (m3) | F9: 20 | G9: 0 | H9: =F9*G9 -> 0
B10: C3.1.1.2 | D10: Extra over sub-item C3.1.1.1 for excavation in hard and boulder material, irrespective of depth | E10: cubic metre (m3) | F10: 5 | G10: 0 | H10: 0
A11: C3.1.2 | D11: Clearing, shaping and disposal of accumulated sediment in existing unlined open drains
B12: C3.1.2.1 | D12: Using conventional methods | E12: cubic metre (m3) | F12: 20 | G12: 0 | H12: =F12*G12 -> 0
B13: C3.1.2.2 | D13: Using labour enhanced construction methods | E13: cubic metre (m3) | H13: =F13*G13 -> 0
A14: C3.1.3 | D14: Excavation, clearing and disposal of accumulated sediment in existing lined drains and drainage systems
B15: C3.1.3.3 | D15: Using labour enhanced construction methods:
C16: (a) | D16: Manholes and inlet and outlet structures | E16: cubic metre (m3) | F16: 10 | G16: 0 | H16: =F16*G16 -> 0
C17: (b) | D17: Culvert barrels | E17: cubic metre (m3) | F17: 10 | G17: 0 | H17: =F17*G17 -> 0
C18: (c) | D18: Concrete or other lined side drains | E18: cubic metre (m3) | H18: =F18*G18 -> 0
A19: C3.1.4 | D19: Excavation and disposal of material for subsoil drainage systems:
B20: C3.1.4.1 | D20: Excavating in all material situated within the following depth ranges below the surface:
C21: (a) | D21: 0m to 1,5m | E21: cubic metre (m3) | F21: 10 | G21: 0 | H21: =F21*G21 -> 0
B22: C3.1.4.4 | D22: Extra over sub-item C3.1.4.1 for excavation in hard and boulder material, irrespective of depth | E22: cubic metre (m3) | F22: 2 | G22: 0 | H22: 0
A23: C3.1.5 | D23: Impermeable backfilling to subsoil drainage systems
B24: C3.1.5.1 | D24: Un-stabilised natural gravel obtained from approved sources on the site | E24: cubic metre (m3) | F24: 10 | G24: 0 | H24: =F24*G24 -> 0
A25: C3.1.7 | D25: Natural permeable material in subsoil drainage systems (approved crushed stone):
B26: C3.1.7.2 | D26: Crushed stone obtained from commercial sources (course grade and 20mm nominal aggregate size) | E26: cubic metre (m3) | F26: 10 | G26: 0 | H26: =F26*G26 -> 0
A27: C3.1.8 | D27: Natural permeable material in subsoil drainage systems (approved natural sand):
B28: C3.1.8.2 | D28: Natural sand from commercial sources (Medium grade) | E28: cubic metre (m3) | F28: 20 | G28: 0 | H28: =F28*G28 -> 0
A29: C3.1.9 | D29: Pipes in subsoil drainage systems:
B30: C3.1.9.1 | D30: U-PVC pipes and fittings, normal duty, complete with couplings (110mm Internal Dia and perforated | E30: metre (m) | F30: 15 | G30: 0 | H30: =F30*G30 -> 0
A31: C3.1.10 | D31: Polymer film sheeting or similar approved material, for lining subsoil drainage systems:
A32: C3.1.11 | D32: Geotextiles (Bidim, Grade E) | E32: square metre (m2) | F32: 1800 | G32: 0 | H32: =F32*G32 -> 0
A33: C3.1.12 | D33: Composite drainage systems
B34: C3.1.12.1 | D34: In-plane drainage systems (Supply and lay fin drain composite subsoil drainage system including 100 mm diameter HDPE mesh structured pipe | E34: metre (m) | F34: 15 | G34: 0 | H34: =F34*G34 -> 0
A35: C3.1.13 | D35: Concrete outlet structures, manhole boxes, junction boxes and cleaning eyes for subsoil drainage systems:
B36: C3.1.13.1 | D36: Outlet structures (Type A as per Standard detail TD-SD-1002 | E36: number (No.) | F36: 6 | G36: 0 | H36: =F36*G36 -> 0
B37: C3.1.13.3 | D37: Junction boxes (As per TD-SD-1003) | E37: number (No.) | F37: 6 | G37: 0 | H37: =F37*G37 -> 0
B38: C3.1.13.4 | D38: Cleaning eyes (As per TD-SD-1003) | E38: number (No.) | F38: 6 | G38: 0 | H38: =F38*G38 -> 0
A39: C3.1.14 | D39: Caps for subsoil drain pipes:
B40: C3.1.14.3 | D40: Other (Glass fibre reinforced, PVC etc.) (PVC) | E40: number (No.) | F40: 10 | G40: 0 | H40: =F40*G40 -> 0
A41: C3.1.16 | D41: Loading and hauling of material in excess of 1,0 km | E41: cubic metre - kilometre (m3 - km) | F41: 60 | G41: 0 | H41: =F41*G41 -> 0
A42: C3.1.22 | D42: Test flushing of subsoil drain pipe systems | E42: number (No.) | F42: 2 | G42: 0 | H42: =F42*G42 -> 0
A43: C3.1.23 | D43: Subsoil drain outlet marker (As per TD-SD-1002) | E43: number (No.) | F43: 2 | G43: 0 | H43: =F43*G43 -> 0
A44: C3.1.24 | D44: Submission of as built drawings by the Contractor | E44: provisional sum | F44: Prov | G44: Sum | H44: R10,000.00
A48: TOTAL CARRIED FORWARD TO SUMMARY | H48: =SUM(H7:H47) -> R10,000.00

Sheet C3.2
A1: ='C3.1'!A1 -> CONTRACT SANRAL N.012-150-2020/1
A2: ='C3.1'!A2 -> FOR RESURFACING OF NATIONAL ROUTE N12 SECTION 15 FROM WOLMARANSSTAD (KM 0.0) TO KM 46.0
A3: C3.2 | E3: CULVERTS
A4: ITEM | D4: DESCRIPTION | E4: UNIT | F4: QTY | G4: RATE | H4: AMT
A7: C3.2.1 | D7: Excavation for culvert structures:
B8: C3.2.1.1 | D8: Excavating in all material situated within the following depth ranges below the surface level:
C9: (a) | D9: 0m to 1,5m | E9: cubic metre (m3) | F9: 10 | G9: 0 | H9: =F9*G9 -> 0
C10: (b) | D10: Exceeding 1,5m and up to 3,0m | E10: cubic metre (m3) | F10: 5 | G10: 0 | H10: 0
B11: C3.2.1.4 | D11: Extra over sub-item C3.2.1.1 for excavation in hard or boulder material, irrespective of depth | E11: cubic metre (m3) | F11: 1.5 | G11: 0 | H11: 0
A12: PC3.2.2 | D12: Backfilling
B13: C3.2.2.2 | D13: Using imported selected material:
C14: (a) | D14: From commercial sources (G5) | E14: cubic metre (m3) | F14: 20 | G14: 0 | H14: =F14*G14 -> 0
A15: C3.2.3 | D15: Concrete pipe culverts:
B16: C3.2.3.3 | D16: On Class C bedding (Concrete pipes 600mm Diameter) | E16: metre (m) | F16: 5 | G16: 0 | H16: =F16*G16 -> 0
A17: C3.2.7 | D17: Cast in situ concrete and formwork:
B18: C3.2.7.5 | D18: In inlet and outlet structures including kerbs, chutes and downpipes, skewed ends, catchpits, manholes, thrust and anchor blocks, excluding formwork but including Class U2 surfacing finish (20 MPA) | E18: cubic metre (m3) | F18: 5 | G18: 0 | H18: =F18*G18 -> 0
B19: C3.2.7.6 | D19: Formwork of concrete under items C3.2.7.3 to 5 above (U2 Finish) | E19: square metre (m2) | F19: 6 | G19: 0 | H19: 0
A20: C3.2.9 | D20: Prefabricated concrete inlets and outlets to culverts (600mm Dia Pipe inlet and outlet structures) | E20: number (No.) | F20: 2 | G20: 0 | H20: 0
A21: C3.2.16 | D21: Brickwork (Engineering bricks):
B22: C3.2.16.2 | D22: 230mm thick | E22: square metre (m2) | F22: 10 | G22: 0 | H22: =F22*G22 -> 0
A23: C3.2.17 | D23: Plaster | E23: square metre (m2) | F23: 10 | G23: 0 | H23: 0
A24: C3.2.18 | D24: Benching | E24: cubic metre (m3) | F24: 1 | G24: 0 | H24: 0
A28: TOTAL CARRIED FORWARD TO SUMMARY | H28: =SUM(H7:H27) -> 0

Sheet C4.1
A1: ='C3.2'!A1 -> CONTRACT SANRAL N.012-150-2020/1
A2: ='C3.2'!A2 -> FOR RESURFACING OF NATIONAL ROUTE N12 SECTION 15 FROM WOLMARANSSTAD (KM 0.0) TO KM 46.0
A3: C4.1 | E3: BORROW MATERIALS
A4: ITEM | D4: DESCRIPTION | E4: UNIT | F4: QTY | G4: RATE | H4: AMT
A7: C4.1.10 | D7: Compacting the floor of the stockpile sites | E7: cubic metre (m3) | F7: 1500 | G7: 0 | H7: =F7*G7 -> 0
A8: C4.1.11 | D8: Constructing a platform for the stockpile site | E8: cubic metre (m3) | F8: 1500 | G8: 0 | H8: 0
A9: C4.1.15 | D9: Shaping and finishing the borrow pit and quarry areas, and the stockpile sites
B10: C4.1.15.1 | D10: Shaping and finishing the borrow pit and quarry areas, and the stockpile sites:
C11: (c) | D11: Stockpile sites | E11: hectare (ha) | F11: 1 | G11: 0 | H11: =F11*G11 -> 0
A14: TOTAL CARRIED FORWARD TO SUMMARY | H14: =SUM(H7:H13) -> 0

Sheet C4.3
A1: ='C4.1'!A1 -> CONTRACT SANRAL N.012-150-2020/1
A2: ='C4.1'!A2 -> FOR RESURFACING OF NATIONAL ROUTE N12 SECTION 15 FROM WOLMARANSSTAD (KM 0.0) TO KM 46.0
A3: C4.3 | F3: EXISTING ROAD MATERIALS
A4: ITEM | E4: DESCRIPTION | F4: UNIT | G4: QTY | H4: RATE | I4: AMT
A7: C4.3.4 | E7: Saw-cutting existing materials within the following average depth ranges
B8: C4.3.4.1 | E8: Asphalt material:
C9: (a) | E9: Up to 50mm | F9: metre (m) | G9: 3302.4 | H9: 0 | I9: =G9*H9 -> 0
A10: C4.3.5 | E10: Providing the milling machine on the site
B11: C4.3.5.2 | E11: Large milling machine with a cutting width exceeding 1,2m | F11: number (No.) | G11: 1 | H11: 0 | I11: =G11*H11 -> 0
A12: C4.3.6 | E12: Milling and removal of existing asphalt layers with an average milling depth (Contractor takes ownership)
B13: C4.3.6.1 | E13: Not exceeding 50mm | F13: cubic metre (m3) | G13: 2320 | H13: 0 | I13: =G13*H13 -> 0
B14: C4.3.6.3 | E14: Exceeding 100mm | F14: cubic metre (m3) | G14: 1710 | H14: 0 | I14: =G14*H14 -> 0
A15: C4.3.8 | E15: Excavating material by milling
B16: C4.3.8.3 | E16: Natural gravel material | F16: cubic metre (m3) | G16: 300 | H16: 0 | I16: =G16*H16 -> 0
A17: C4.3.18 | E17: Excavate non-compliant or excess pavement layer material to spoil in sites designated by the Contractor, material consisting of
B18: C4.3.18.1 | E18: Asphalt material | F18: cubic metre (m3) | G18: 1600 | H18: 0 | I18: =G18*H18 -> 0
B19: C4.3.18.2 | E19: Crushed stone, macadam, gravel and sand material | F19: cubic metre (m3) | G19: 6576 | H19: 0 | I19: =G19*H19 -> 0
B20: C4.3.18.3 | E20: Cemented material | F20: cubic metre (m3) | G20: 1450 | H20: 0 | I20: =G20*H20 -> 0
A21: C4.3.21/4.1.16 | E21: Personnel
B22: C4.3.21/4.1.16.2 | E22: Excavation controller | F22: month | G22: 6 | H22: 0 | I22: =G22*H22 -> 0
A26: TOTAL CARRIED FORWARD TO SUMMARY | I26: =SUM(I7:I25) -> 0

Sheet C4.4
A1: ='C4.3'!A1 -> CONTRACT SANRAL N.012-150-2020/1
A2: ='C4.3'!A2 -> FOR RESURFACING OF NATIONAL ROUTE N12 SECTION 15 FROM WOLMARANSSTAD (KM 0.0) TO KM 46.0
A3: C4.4 | E3: COMMERCIAL MATERIALS
A4: ITEM | D4: DESCRIPTION | E4: UNIT | F4: QTY | G4: RATE | H4: AMT
A7: C4.4.2 | D7: Commercial materials identified by the Contractor from commercial, private or other non-commercial suppliers
B8: C4.4.2.1 | D8: Pavement layer material:
C9: (c) | D9: Type G5B material for leveling layer and reshaping of gravel shoulders | E9: cubic metre (m3) | F9: 650 | G9: 0 | H9: =F9*G9 -> 0
C10: (d) | D10: Type G5A material for cement stabilised pavement layers ( 200mm Cemented C3 upper subbase to 95% of MDD and 200mm Cemented C4 lower subbase to 95% of MDD) | E10: cubic metre (m3) | F10: 4887 | G10: 0 | H10: 0
B11: C4.4.2.5 | D11: Fill material in the earthworks:
B12: C4.4.2.6 | D12: Adhoc Pioneer material 300mm thick | E12: cubic metre (m3) | F12: 950 | G12: 0 | H12: =F12*G12 -> 0
A13: C4.4.4 | D13: Cementitious stabilising agents
B14: C4.4.4.1 | D14: Cement - CEM II B-L 32.5N | E14: ton (t) | F14: 520 | G14: 0 | H14: =F14*G14 -> 0
A18: TOTAL CARRIED FORWARD TO SUMMARY | H18: =SUM(H7:H17) -> 0

Sheet C5.1
A1: ='C4.4'!A1 -> CONTRACT SANRAL N.012-150-2020/1
A2: ='C4.4'!A2 -> FOR RESURFACING OF NATIONAL ROUTE N12 SECTION 15 FROM WOLMARANSSTAD (KM 0.0) TO KM 46.0
A3: C5.1 | F3: ROADBED
A4: ITEM | E4: DESCRIPTION | F4: UNIT | G4: QTY | H4: RATE | I4: AMT
A7: C5.1.1 | E7: Roadbed construction and compaction:
B8: C5.1.1.4 | E8: Compaction of imported material to 93% of MDD | F8: cubic metre (m3) | G8: 1830 | H8: 0 | I8: =G8*H8 -> 0
A9: C5.1.11 | E9: Construction of roadbed comprising a pioneer layer | F9: cubic metre (m3) | G9: 950 | H9: 0 | I9: =G9*H9 -> 0
A10: C5.1.13 | E10: Construction of a levelling layer:
B11: C5.1.13.2 | E11: Over a constructed pioneer layer compacted to 90% MDD | F11: cubic metre (m3) | G11: 474.75 | H11: 0 | I11: =G11*H11 -> 0
A15: TOTAL CARRIED FORWARD TO SUMMARY | I15: =SUM(I7:I14) -> 0

Sheet C5.3
A1: ='C5.1'!A1 -> CONTRACT SANRAL N.012-150-2020/1
A2: ='C5.1'!A2 -> FOR RESURFACING OF NATIONAL ROUTE N12 SECTION 15 FROM WOLMARANSSTAD (KM 0.0) TO KM 46.0
A3: C5.3 | E3: ROAD PAVEMENT LAYERS
A4: ITEM | D4: DESCRIPTION | E4: UNIT | F4: QTY | G4: RATE | H4: AMT
A7: C5.3.1 | D7: Compiling and implementing M&U plans for the construction of all the pavement layers. | E7: number (No.) | F7: 2 | G7: R0.00 | H7: =F7*G7 -> 0
A8: C5.3.2 | D8: Construction of pavement layers
B9: C5.3.2.1 | D9: Construction of layers using conventional construction methods:
C10: (j) | D10: Lower subbase gravel layer ( 200mm Cemented C4 lower subbase to 95% of MDD) | E10: cubic metre (m3) | F10: 2442 | G10: R0.00 | H10: =F10*G10 -> 0
C11: (l) | D11: Upper subbase gravel layer (200mm Cemented C3 upper subbase to 95% of MDD ) | E11: cubic metre (m3) | F11: 2445 | G11: R0.00 | H11: 0
A22: TOTAL CARRIED FORWARD TO SUMMARY | H22: =SUM(H7:H21) -> 0

Sheet C5.4
A1: ='C5.3'!A1 -> CONTRACT SANRAL N.012-150-2020/1
A2: ='C5.3'!A2 -> FOR RESURFACING OF NATIONAL ROUTE N12 SECTION 15 FROM WOLMARANSSTAD (KM 0.0) TO KM 46.0
A3: C5.4 | E3: STABILISATION
A4: ITEM | D4: DESCRIPTION | E4: UNIT | F4: QTY | G4: RATE | H4: AMT
A7: C5.4.2 | D7: Chemical stabilisation:
B8: C5.4.2.1 | D8: (i) Chemical stabilisation ( 200mm Cemented C4 lower subbase to 95% of MDD) | E8: cubic metre (m3) | F8: 2442 | G8: 0 | H8: =F8*G8 -> 0
D9: (ii) Chemical stabilisation ( 200mm Cemented C3 Upper subbase to 95% of MDD) | E9: cubic metre (m3) | F9: 2445 | G9: 0 | H9: =F9*G9 -> 0
A10: C5.4.5 | D10: Cementitious stabilisation agents for pavement layers:
B11: C5.4.5.1 | D11: Addition of cementitious stabilisation agents (specify agent separately) for pavement layers
C12: (a) | D12: Cement - CEM II B-L 32.5N (C3 upper subbase and C4 lower subbase) | E12: ton (t) | F12: 520 | G12: 0 | H12: =F12*G12 -> 0
A13: C5.4.10 | D13: Provision and application of water for curing | E13: kilolitre (kℓ) | F13: 2500 | G13: 0 | H13: =F13*G13 -> 0
A17: TOTAL CARRIED FORWARD TO SUMMARY | H17: =SUM(H7:H16) -> 0

Sheet C8.1
A1: ='C5.4'!A1 -> CONTRACT SANRAL N.012-150-2020/1
A2: ='C5.4'!A2 -> FOR RESURFACING OF NATIONAL ROUTE N12 SECTION 15 FROM WOLMARANSSTAD (KM 0.0) TO KM 46.0
A3: C8.1 | D3: PRIME COAT
A4: ITEM | C4: DESCRIPTION | D4: UNIT | E4: QTY | F4: RATE | G4: AMT
A7: C8.1.1 | C7: Prime coat:
B8: C8.1.1.3 | C8: Inverted bitumen emulsion | D8: litre (ℓ) | E8: 28000 | F8: 0 | G8: =E8*F8 -> 0
B9: C8.1.1.4 | C9: Certified product containing solvents (Quick Dry Prime (QDP)) | D9: litre (ℓ) | E9: 100 | F9: 0 | G9: =E9*F9 -> 0
A10: C8.1.2 | C10: Aggregate for blinding:
B11: C8.1.2.1 | C11: Natural sand | D11: cubic metre (m3) | E11: 50 | F11: 0 | G11: =E11*F11 -> 0
A15: TOTAL CARRIED FORWARD TO SUMMARY | G15: =SUM(G7:G14) -> 0

Sheet C8.8
A1: ='C8.1'!A1 -> CONTRACT SANRAL N.012-150-2020/1
A2: ='C8.1'!A2 -> FOR RESURFACING OF NATIONAL ROUTE N12 SECTION 15 FROM WOLMARANSSTAD (KM 0.0) TO KM 46.0
A3: C8.8 | E3: PATCHING AND EDGE BREAK REPAIR
A4: ITEM | D4: DESCRIPTION | E4: UNIT | F4: QTY | G4: RATE | H4: AMT
A7: C8.8.1 | D7: Saw cutting pavement layers for patching
B8: C8.8.1.1 | D8: Asphalt or bituminous surfacing to an average depth
C9: (a) | D9: Not exceeding 50mm | E9: metre (m) | F9: 845 | G9: 0 | H9: =F9*G9 -> 0
A10: C8.8.2 | D10: Excavation in existing pavements for patching (non-milling)
B11: C8.8.2.1 | D11: Asphalt layers
C12: (a) | D12: Not exceeding 10 m² including for edge repairs wider than 250mm | E12: cubic metre (m3) | F12: 8.4 | G12: 0 | H12: =F12*G12 -> 0
C13: (b) | D13: Exceeding 10 m² but not exceeding 50 m² including for edge repairs wider than 250mm | E13: cubic metre (m3) | F13: 48 | G13: 0 | H13: =F13*G13 -> 0
C14: (c) | D14: Exceeding 50 m² up to 100 m² including for edge repairs wider than 250mm | E14: cubic metre (m3) | F14: 31.2 | G14: 0 | H14: =F14*G14 -> 0
C15: (d) | D15: Exceeding 100 m² | E15: cubic metre (m3) | F15: 18 | G15: 0 | H15: =F15*G15 -> 0
B16: C8.8.2.3 | D16: Other layers (Gravel Material)
C17: (a) | D17: Not exceeding 10 m² including for edge repairs wider than 250mm | E17: cubic metre (m3) | F17: 14.4 | G17: 0 | H17: =F17*G17 -> 0
C18: (b) | D18: Exceeding 10 m² but not exceeding 50 m² including for edge repairs wider than 250mm | E18: cubic metre (m3) | F18: 121.2 | G18: 0 | H18: =F18*G18 -> 0
C19: (c) | D19: Exceeding 50 m² up to 100 m² including for edge repairs wider than 250mm | E19: cubic metre (m3) | F19: 84 | G19: 0 | H19: =F19*G19 -> 0
C20: (d) | D20: Exceeding 100 m² | E20: cubic metre (m3) | F20: 48 | G20: 0 | H20: =F20*G20 -> 0
A21: C8.8.3 | D21: Compacting the floor of excavations for patching (specify density) | E21: square metre (m2) | F21: 2000 | G21: 0 | H21: =F21*G21 -> 0
A22: C8.8.4 | D22: Backfilling of excavations for patching with:
B23: C8.8.4.3 | D23: Asphalt for a patch with a surface area (150mm thick BTB continously grade with 14mm maximum aggreagte utilising an elastomeric modified binder 93% min density)
C24: (a) | D24: Not exceeding 10 m² including for edge repairs wider than 250mm | E24: ton (t) | F24: 68.4 | G24: 0 | H24: =F24*G24 -> 0
C25: (b) | D25: Exceeding 10 m² but not exceeding 50 m² including for edge repairs wider than 250mm | E25: ton (t) | F25: 507.6 | G25: 0 | H25: =F25*G25 -> 0
C26: (c) | D26: Exceeding 50 m² up to 100 m² including for edge repairs wider than 250mm | E26: ton (t) | F26: 345.6 | G26: 0 | H26: =F26*G26 -> 0
C27: (d) | D27: Exceeding 100 m² | E27: ton (t) | F27: 198 | G27: 0 | H27: =F27*G27 -> 0
A28: C8.8.6 | D28: Repairing edge breaks in surfacing
B29: C8.8.6.1 | D29: Cutting back the edges of the existing surfacing for the repairing of edge breaks | E29: metre (m) | F29: 1280.4 | G29: 0 | H29: =F29*G29 -> 0
A33: TOTAL CARRIED FORWARD TO SUMMARY | H33: =SUM(H7:H32) -> 0

Sheet C9.1
A1: ='C8.8'!A1 -> CONTRACT SANRAL N.012-150-2020/1
A2: ='C8.8'!A2 -> FOR RESURFACING OF NATIONAL ROUTE N12 SECTION 15 FROM WOLMARANSSTAD (KM 0.0) TO KM 46.0
A3: C9.1 | E3: ASPHALT LAYERS
A4: ITEM | D4: DESCRIPTION | E4: UNIT | F4: QTY | G4: RATE | H4: AMT
A7: C9.1.1 | D7: Asphalt mix designs
B8: C9.1.1.2 | D8: Sand skeletal mixes:
C9: (a) | D9: Continuous grading; NMPS 14mm; PG64-16V (Elastomeric modified binder) binder; Design Level II; minimum 50mm thickness, continuous grading; NMPS 14mm PG64-16S (Elastomeric modified binder) binder; Design Level II; minimum 150mm thicknes, continuous grading; NMPS 14mm PG64-16S (Elastomeric modified binder) binder; Design Level II; minimum 150mm thickness. | E9: lump sum | F9: lump | G9: sum | H9: 0
A10: C9.1.2 | D10: Construction of trial sections
B11: C9.1.2.1 | D11: Asphalt wearing course at intersections: Sand skeletal mix; continuous grading; NMPS 14mm; PG64-16V (Elastomeric modified binder) binder; Design Level II; minimum 50mm thickness. | E11: square metre (m2) | F11: 1220 | G11: 0 | H11: =F11*G11 -> 0
D12: Asphalt base and base patching: Sand skeletal mix; continuous grading; NMPS 14mm PG64-16S (Elastomeric modified binder) binder; Design Level II; minimum 150mm thickness. | E12: square metre (m2) | F12: 1220 | G12: 0 | H12: =F12*G12 -> 0
D13: Asphalt wearing course and surface patching: Sand skeletal mix; continuous grading; NMPS 14mm; PG64-16S (Elastomeric modified binder) binder; Design Level II; minimum 50mm thickness. | E13: square metre (m2) | F13: 1220 | G13: 0 | H13: =F13*G13 -> 0
B14: C9.1.2.2 | D14: Removal of trial section where so instructed by the Engineer | E14: square metre (m2) | F14: 3660 | G14: 0 | H14: =F14*G14 -> 0
A15: C9.1.3 | D15: Application of bond coat
B16: C9.1.3.1 | D16: Stable–grade 30% net bitumen emulsion as specified. Applied with a calibrated distributer | E16: litre (ℓ) | F16: 26000 | G16: 0 | H16: =F16*G16 -> 0
A17: C9.1.4 | D17: Asphalt base
B18: C9.1.4.2 | D18: Rehabilitation
C19: (c) | D19: Asphalt base and base patching: Sand skeletal mix; continuous grading; NMPS 14mm PG64-16S (Elastomeric modified binder) binder; Design Level II; minimum 150mm thickness. | E19: ton (t) | F19: 10500 | G19: 0 | H19: =F19*G19 -> 0
A20: C9.1.5 | D20: Asphalt surfacing
B21: C9.1.5.2 | D21: Rehabilitation
C22: (e) | D22: (i) Asphalt wearing course and surface patching: Sand skeletal mix; continuous grading; NMPS 14mm; PG64-16S (Elastomeric modified binder) binder; Design Level II; minimum 50mm thickness. | E22: ton (t) | F22: 3500 | G22: 0 | H22: =F22*G22 -> 0
D23: (ii) Asphalt wearing course at intersections: Sand skeletal mix; continuous grading; NMPS 14mm; PG64-16V (Elastomeric modified binder) binder; Design Level II; minimum 50mm thickness. | E23: ton (t) | F23: 4100 | G23: 0 | H23: =F23*G23 -> 0
A24: C9.1.7 | D24: Placing and compacting asphalt in restricted areas
B25: C9.1.7.2 | D25: Extra over payment items C9.1.4.2 and C9.1.5.2 (Asphalt wearing course at intersections: Sand skeletal mix; continuous grading; NMPS 14mm; PG64-16V (Elastomeric modified binder) binder; Design Level II; minimum 50mm thickness and placing technique (hand or paver)) | E25: ton (t) | F25: 205 | G25: 0 | H25: =F25*G25 -> 0
A26: C9.1.9 | D26: Application of rolled in chippings (10mm precoated aggregate)
B27: C9.1.9.1 | D27: By means of chip spreader | E27: square metre (m2) | F27: 33000 | G27: 0 | H27: =F27*G27 -> 0
B28: C9.1.9.2 | D28: By hand in restricted areas | E28: square metre (m2) | F28: 2000 | G28: 0 | H28: =F28*G28 -> 0
A29: C9.1.10 | D29: Variation rates
B30: C9.1.10.1 | D30: Bitumen (Elastomeric modified binder) | E30: ton (t) | F30: 10 | G30: 0 | H30: =F30*G30 -> 0
B31: C9.1.10.3 | D31: Active filler (lime unless stated in Contract Documentation) | E31: ton (t) | F31: 2 | G31: 0 | H31: 0
B32: C9.1.10.5 | D32: Rolled-in chippings | E32: ton (t) | F32: 30 | G32: 0 | H32: 0
B33: C9.1.14.1 | D33: Establishment of equipment: Inertial laser Profilometer | E33: number (No.) | F33: 1 | G33: 0 | H33: =F33*G33 -> 0
B34: C9.1.14.2 | D34: Profiler Surveys utilising equipment as specified - Base layers and surfacing layers | E34: lane kilometre (km) | F34: 5 | G34: 0 | H34: =F34*G34 -> 0
A38: TOTAL CARRIED FORWARD TO SUMMARY | H38: =SUM(H9:H34) -> 0

Sheet C10.1
A1: ='C9.1'!A1 -> CONTRACT SANRAL N.012-150-2020/1
A2: ='C9.1'!A2 -> FOR RESURFACING OF NATIONAL ROUTE N12 SECTION 15 FROM WOLMARANSSTAD (KM 0.0) TO KM 46.0
A3: C10.1 | E3: GENERAL REQUIREMENTS FOR SURFACE TREATMENTS
A4: ITEM | D4: DESCRIPTION | E4: UNIT | F4: QTY | G4: RATE | H4: AMT
A7: C10.1.1 | D7: Single seals including a cover spray, if specified (Grade 1 aggregate with a cationic spray grade emulsion (undiluted)):
B8: C10.1.1.2 | D8: Using 7,1mm aggregate | E8: square metre (m2) | F8: 2500 | G8: 0 | H8: =F8*G8 -> 0
A9: C10.1.4 | D9: Embargo period effects
B10: C10.1.4.1 | D10: Re-establishment of sealing team after embargo period | E10: lump sum | F10: lump | G10: sum | H10: 0
A11: C10.1.9 | D11: Bituminous binder variations:
B12: C10.1.9.7 | D12: Homogeneous modified binder (S-E1) hot applied | E12: litre (ℓ) | F12: 56364 | G12: 0 | H12: =F12*G12 -> 0
A13: C10.1.10 | D13: Aggregate variation (Grade 1):
B14: C10.1.10.5 | D14: 20mm aggregate | E14: cubic metre (m3) | F14: 1127.28 | G14: 0 | H14: =F14*G14 -> 0
A15: C10.1.15 | D15: Precoating of aggregate by hand
B16: C10.1.15.1 | D16: Product containing low flashpoint solvent (Bitucote) | E16: litre (ℓ) | F16: 75152 | G16: 0 | H16: =F16*G16 -> 0
A17: C10.1.22 | D17: Bituminous single seal and slurry, including a cover spray if specified:
B18: C10.1.22.1 | D18: Bituminous single seal with 20mm aggregate and first slurry (Grade 1 aggregate, 65% Diluted Cationic spray-grade emulsion idiluted 50% with water and applied at 0.50 l/m2 of diluted emulsion and S-E1 binder and a fine slurry medium grading) | E18: square metre (m2) | F18: 563640 | G18: 0 | H18: =F18*G18 -> 0
B19: C10.1.22.4 | D19: Extra over C10.1.22.1 for application of second slurry (Fine Slurry, Fine Grading) | E19: square metre (m2) | F19: 563640 | G19: 0 | H19: =F19*G19 -> 0
A20: C10.1.26 | D20: Trial sections for all seal types specified (20mm Cape Seal with 2 layer slurry application and cover spray) | E20: lump sum | F20: lump | G20: sum | H20: 0
A24: TOTAL CARRIED FORWARD TO SUMMARY | H24: =SUM(H7:H23) -> 0

Sheet C11.1
A1: ='C10.1'!A1 -> CONTRACT SANRAL N.012-150-2020/1
A2: ='C10.1'!A2 -> FOR RESURFACING OF NATIONAL ROUTE N12 SECTION 15 FROM WOLMARANSSTAD (KM 0.0) TO KM 46.0
A3: C11.1 | E3: PITCHING, STONEWORK, CAST IN SITU CONCRETE FOR PROTECTION AGAINST EROSION
A4: ITEM | D4: DESCRIPTION | E4: UNIT | F4: QTY | G4: RATE | H4: AMT
A7: C11.1.6 | D7: Concrete edge beams (30 MPA) | E7: cubic metre (m3) | F7: 10 | G7: 0 | H7: =F7*G7 -> 0
A11: TOTAL CARRIED FORWARD TO SUMMARY | H11: =SUM(H7:H10) -> 0

Sheet C11.2
A1: ='C11.1'!A1 -> CONTRACT SANRAL N.012-150-2020/1
A2: ='C11.1'!A2 -> FOR RESURFACING OF NATIONAL ROUTE N12 SECTION 15 FROM WOLMARANSSTAD (KM 0.0) TO KM 46.0
A3: C11.2 | E3: NON-STRUCTURAL GABIONS
A4: ITEM | D4: DESCRIPTION | E4: UNIT | F4: QTY | G4: RATE | H4: AMT
A7: C11.2.1 | D7: Foundation trench excavation:
B8: C11.2.1.1 | D8: Excavating all material situated within the following depth ranges below the surface level
C9: (a) | D9: 0m to 1,5m | E9: cubic metre (m3) | F9: 20 | G9: 0 | H9: =F9*G9 -> 0
B10: C11.2.1.2 | D10: Extra over sub-item C11.2.1.1 for excavation in hard material, irrespective of depth | E10: cubic metre (m3) | F10: 3 | G10: 0 | H10: 0
A11: C11.2.2 | D11: Surface preparation for bedding the gabion boxes and mattresses | E11: square metre (m2) | F11: 45 | G11: 0 | H11: 0
A12: C11.2.3 | D12: Gabion boxes and mattresses:
B13: C11.2.3.1 | D13: Galvanized gabion boxes (2,0 m x 1,0m x 1,0m gabion box with 1,0m diaphragm spacing, mesh size 80mm x 100mm with 2,7mm wires) | E13: cubic metre (m3) | F13: 10 | G13: 0 | H13: =F13*G13 -> 0
B14: C11.2.3.3 | D14: Galvanized gabion mattresses (2,0 m x 1m x 0.3m gabion mattresses with , mesh size 80mm x 100mm with 2,7mm wires) | E14: cubic metre (m3) | F14: 6 | G14: 0 | H14: =F14*G14 -> 0
A15: C11.2.4 | D15: Geotextile (Grade 1 non-woven, minimum mass 320g/m²) | E15: square metre (m2) | F15: 80 | G15: 0 | H15: =F15*G15 -> 0
A19: TOTAL CARRIED FORWARD TO SUMMARY | H19: =SUM(H7:H18) -> 0

Sheet C11.4
A1: ='C11.2'!A1 -> CONTRACT SANRAL N.012-150-2020/1
A2: ='C11.2'!A2 -> FOR RESURFACING OF NATIONAL ROUTE N12 SECTION 15 FROM WOLMARANSSTAD (KM 0.0) TO KM 46.0
A3: C11.4 | E3: ROAD RESTRAINT SYSTEMS
A4: ITEM | D4: DESCRIPTION | E4: UNIT | F4: QTY | G4: RATE | H4: AMT
A7: C11.4.1 | D7: Erecting of guardrails at 3,81m spacing
B8: C11.4.1.1 | D8: Complete galvanized system compliant to SANS 1350:
C9: (a) | D9: On timber posts (TD-R-GR-1001-1002) | E9: metre (m) | F9: 20 | G9: 0 | H9: =F9*G9 -> 0
C10: (d) | D10: Extra over C11.4.1.1(a) and C11.4.1.1(b) for excavating holes of posts using labour enhanced methods (soft and intermediate) | E10: metre (m) | F10: 20 | G10: 0 | H10: =F10*G10 -> 0
B11: C11.4.1.2 | D11: Terminal sections for 3,81 guardrails comprising of:
C12: (e) | D12: End treatments where double guardrail sections are specified (TD-R-GR-1100-1101) | E12: number (No.) | F12: 1 | G12: 0 | H12: =F12*G12 -> 0
C13: (f) | D13: Bridge adaptors (including extra rails and posts) (TD-R-GR-1200-1201) | E13: number (No.) | F13: 2 | G13: 0 | H13: 0
A14: C11.4.5 | D14: Additional guardrail posts for 3,81m systems:
B15: C11.4.5.1 | D15: Timber | E15: number (No.) | F15: 5 | G15: 0 | H15: =F15*G15 -> 0
A16: C11.4.6 | D16: Reflective plates
B17: C11.4.6.1 | D17: Steel plates | E17: number (No.) | F17: 10 | G17: 0 | H17: =F17*G17 -> 0
A18: C11.4.7 | D18: Removing existing guardrails: | E18: metre (m) | F18: 20 | G18: 0 | H18: =F18*G18 -> 0
A22: TOTAL CARRIED FORWARD TO SUMMARY | H22: =SUM(H7:H21) -> 0

Sheet C11.6
A1: ='C11.4'!A1 -> CONTRACT SANRAL N.012-150-2020/1
A2: ='C11.4'!A2 -> FOR RESURFACING OF NATIONAL ROUTE N12 SECTION 15 FROM WOLMARANSSTAD (KM 0.0) TO KM 46.0
A3: C11.6 | E3: ROAD SIGNS
A4: ITEM | D4: DESCRIPTION | E4: UNIT | F4: QTY | G4: RATE | H4: AMT
A7: PC11.6.1 | D7: Road signboards with painted or coloured semi-matt background. Symbols, lettering and borders in semi- matt black or in Class I retro-reflective material, where the sign board is constructed from:
B8: C11.6.1.8 | D8: Regulatory signs, temporary
C9: (a) | D9: 600mm diameter (galvenised steel boards with retro-reflective class I | E9: number (No.) | F9: 10 | G9: 0 | H9: =F9*G9 -> 0
C10: (b) | D10: 900mm diameter (galvenised steel boards with retro-reflective class I ) | E10: number (No.) | F10: 30 | G10: 0 | H10: =F10*G10 -> 0
C11: (c) | D11: 1200mm diameter (galvenised steel boards with retro-reflective class I | E11: number (No.) | F11: 30 | G11: 0 | H11: =F11*G11 -> 0
B12: C11.6.1.10 | D12: Warning signs, temporary
C13: (b) | D13: 900mm size (galvenised steel boards with retro-reflective class I | E13: number (No.) | F13: 10 | G13: 0 | H13: =F13*G13 -> 0
C14: (c) | D14: 1200mm size (galvenised steel boards with retro-reflective class I | E14: number (No.) | F14: 30 | G14: 0 | H14: 0
C15: (d) | D15: 1500mm size (galvenised steel boards with retro-reflective class I | E15: number (No.) | F15: 30 | G15: 0 | H15: 0
A16: C11.6.3 | D16: Road sign supports (overhead road sign structures excluded):
B17: C11.6.3.2 | D17: Timber (110mm Dia treated poles) | E17: metre (m) | F17: 200 | G17: 0 | H17: =F17*G17 -> 0
A18: C11.6.5 | D18: Excavation and backfilling for road sign supports (not applicable to kilometre posts)
B19: C11.6.5.2 | D19: Excavating soft or intermediate material and backfilling using labour enhanced construction methods | E19: cubic metre (m3) | F19: 20 | G19: 0 | H19: =F19*G19 -> 0
A20: C11.6.8 | D20: Danger plates at culverts/structures
B21: C11.6.8.3 | D21: Size 300 x 1200mm (Class I Reflective material | E21: number (No.) | F21: 20 | G21: 0 | H21: =F21*G21 -> 0
A25: TOTAL CARRIED FORWARD TO SUMMARY | H25: =SUM(H7:H24) -> 0

Sheet C11.7
A1: ='C11.6'!A1 -> CONTRACT SANRAL N.012-150-2020/1
A2: ='C11.6'!A2 -> FOR RESURFACING OF NATIONAL ROUTE N12 SECTION 15 FROM WOLMARANSSTAD (KM 0.0) TO KM 46.0
A3: C11.7 | D3: ROAD MARKINGS AND ROAD STUDS
A4: ITEM | C4: DESCRIPTION | D4: UNIT | E4: QTY | F4: RATE | G4: AMT
A7: C11.7.2 | C7: Retro-reflective road marking:
B8: C11.7.2.1 | C8: White lines broken or unbroken Solvent based(150mm) | D8: kilometre (km) | E8: 50 | F8: 0 | G8: =E8*F8 -> 0
B9: C11.7.2.2 | C9: Yellow lines broken or unbroken Solvent Based (150mm) | D9: kilometre (km) | E9: =(44*2)+(44*20%) -> 96.80 | F9: 0 | G9: 0
B10: C11.7.2.4 | C10: White lettering and symbols (Solvent Based) | D10: square metre (m2) | E10: 1000 | F10: 0 | G10: 0
B11: C11.7.2.7 | C11: Transverse lines, painted island and arrestor bed markings (any colour) (Solvent Based) | D11: square metre (m2) | E11: 1500 | F11: 0 | G11: 0
A12: PC11.7.3 | C12: Thermoplastic road marking
B13: C11.7.3.1 | C13: Thermoplastic road marking, broken or unbroken | D13: kilometre (km)
C14: (a) White lines broken or unbroken ( width of 150mm) | D14: kilometre (km) | E14: 50 | F14: 0 | G14: =E14*F14 -> 0
C15: (b) Yellow lines broken or unbroken (width of 150mm) | D15: kilometre (km) | E15: 96.8 | F15: 0 | G15: =E15*F15 -> 0
A16: C11.7.7 | C16: Road studs
B17: C11.7.7.2 | C17: Permanent road studs compliant to SANS 1463 (Type RSA-1 bi-directional reflective road studs (anchored) ) | D17: number (No.) | E17: 5550 | F17: 0 | G17: =E17*F17 -> 0
B18: C11.7.7.3 | C18: Temporary road studs compliant to SANS 1442 or 1463 (type/classification & colours stated) | D18: number (No.) | E18: 500 | F18: 0 | G18: =E18*F18 -> 0
A19: C11.7.8 | C19: Setting out and premarking the lines (excluding traffic island markings, lettering and symbols) | D19: kilometre (km) | E19: 170 | F19: 0 | G19: =E19*F19 -> 0
A20: C11.7.9 | C20: Re-establishing the painting unit during the defects notification period and at other instances on instruction of the Engineer | D20: number (No.) | E20: 2 | F20: 0 | G20: 0
A21: C11.7.11 | C21: Removal of existing road studs | D21: number (No.) | E21: 5550 | F21: 0 | G21: =E21*F21 -> 0
A25: TOTAL CARRIED FORWARD TO SUMMARY | G25: =SUM(G7:G24) -> 0

Sheet C11.9
A1: ='C11.7'!A1 -> CONTRACT SANRAL N.012-150-2020/1
A2: ='C11.7'!A2 -> FOR RESURFACING OF NATIONAL ROUTE N12 SECTION 15 FROM WOLMARANSSTAD (KM 0.0) TO KM 46.0
A3: C11.9 | D3: FINISHING THE ROAD AND ROAD RESERVE AND TREATING OLD ROADS
A4: ITEM | C4: DESCRIPTION | D4: UNIT | E4: QTY | F4: RATE | G4: AMT
A7: C11.9.1 | C7: Finishing the road and road reserve:
B8: C11.9.1.2 | C8: Single carriageway road | D8: kilometre (km) | E8: 5 | F8: 0 | G8: =E8*F8 -> 0
A12: TOTAL CARRIED FORWARD TO SUMMARY | G12: =SUM(G7:G11) -> 0

Sheet C13.7
A1: ='C11.9'!A1 -> CONTRACT SANRAL N.012-150-2020/1
A2: ='C11.9'!A2 -> FOR RESURFACING OF NATIONAL ROUTE N12 SECTION 15 FROM WOLMARANSSTAD (KM 0.0) TO KM 46.0
A3: C13.7 | E3: JOINTS
A4: ITEM | D4: DESCRIPTION | E4: UNIT | F4: QTY | G4: RATE | H4: AMT
A7: C13.7.5 | D7: Supply and installation of Agrément South Africa certified proprietary expansion joints
B8: C13.7.5.2 | D8: Asphaltic plug type joints
C9: (c) | D9: 400mm x 75mm | E9: metre (m) | F9: - | G9: 0 | H9: Rate Only
C10: (d) | D10: 500mm x 75mm | E10: metre (m) | F10: 50 | G10: 0 | H10: =F10*G10 -> 0
C11: (e) | D11: 500mm x 100mm | E11: metre (m) | F11: - | G11: 0 | H11: Rate Only
C12: (g) | D12: Extra over for variation in joint depth of asphaltic joints | E12: litre (ℓ) | F12: 50 | G12: 0 | H12: 0
A13: TOTAL CARRIED FORWARD TO SUMMARY | H13: =SUM(H7:H12) -> 0

Sheet C20.1
A1: ='C13.7'!A1 -> CONTRACT SANRAL N.012-150-2020/1
A2: ='C13.7'!A2 -> FOR RESURFACING OF NATIONAL ROUTE N12 SECTION 15 FROM WOLMARANSSTAD (KM 0.0) TO KM 46.0
A3: C20.1 | F3: TESTING MATERIALS AND JUDGEMENT OF WORKMANSHIP
A4: ITEM | E4: DESCRIPTION | F4: UNIT | G4: QTY | H4: RATE | I4: AMT
A5: C20.1.4 | E5: Special tests using Automated Road condition assessment instruments operated by service providers as requested by the Engineer for acceptance control in terms of Clause A20.1.3.6b)(iii)
B6: C20.1.4.4 | E6: Surface macro texture (Clause A20.1.5.5 b)) | F6: prime cost (PC) sum | G6: Prime | H6: Cost | I6: R200,000.00
C7: (a) | E7: Handling cost and profit in respect of item C20.1.4.4 | F7: percentage (%) | G7: =I6 -> R200,000.00 | H7: 0% | I7: =G7*H7 -> 0
A8: PC20.1.5 | E8: Financial contribution for an independent site laboratory (to be a negative rate) | F8: month | G8: 18 | H8: 0 | I8: =G8*H8 -> 0
A9: TOTAL CARRIED FORWARD TO SUMMARY | I9: =SUM(I6:I8) -> R200,000.00

Sheet Sect D - D1000
A1: ='C20.1'!A1 -> CONTRACT SANRAL N.012-150-2020/1
A2: ='C20.1'!A2 -> FOR RESURFACING OF NATIONAL ROUTE N12 SECTION 15 FROM WOLMARANSSTAD (KM 0.0) TO KM 46.0
A3: SECTION D - D1000 | E3: TRAINING, COACHING, GUIDANCE, MENTORING AND ASSISTANCE
A4: ITEM | D4: DESCRIPTION | E4: UNIT | F4: QTY | G4: RATE | H4: AMT
A7: D10.01 | D7: Target Group Participation
B8: (a) | D8: Contract Participation Performance bonus | E8: prime cost (PC) sum | F8: Prime | G8: Cost | H8: R754,000.00
A9: D10.02 | D9: Stakeholder and Community Liaison and Social Facilitation
B10: (a) | D10: Cost of liaison, social facilitation and PLC support | E10: prime cost (PC) sum | F10: Prime | G10: Cost | H10: R120,000.00
B11: (b) | D11: Handling cost and profit in respect of sub-item D10.02(a) | E11: percentage (%) | F11: =H10 -> R120,000.00 | G11: 0% | H11: =F11*G11 -> 0
A12: D10.03 | D12: Tender Process for Targeted Enterprises
B13: (a) | D13: Contractor’s charge for the management and execution of the Targeted Enterprise procurement process:
C14: (i) | D14: Procurement process for the totality of all tenders concluded for the appointment of Targeted Enterprise subcontractors of CIDB 1 and 2 contractor grading | E14: number (No.) | F14: 6 | G14: 0 | H14: =F14*G14 -> 0
C15: (ii) | D15: Procurement process for the totality of all tenders concluded for the appointment of Targeted Enterprise subcontractors of CIDB 3 and 4 contractor grading | E15: number (No.) | F15: 3 | G15: 0 | H15: =F15*G15 -> 0
C16: (iii) | D16: Procurement process for the totality of all tenders concluded for the appointment of Targeted Enterprise subcontractors of CIDB 5 and higher contractor grading | E16: number (No.) | F16: 5 | G16: 0 | H16: =F16*G16 -> 0
C17: (iv) | D17: Procurement process for the totality of all tenders concluded for the appointment of Targeted Enterprise suppliers | E17: number (No.) | F17: 14 | G17: 0 | H17: =F17*G17 -> 0
B18: (b) | D18: Targeted Enterprise Procurement Coordinator | E18: month | F18: 21 | G18: 0 | H18: =F18*G18 -> 0
A19: D10.04 | D19: Responsibilities of the Contractor towards Targeted Enterprises
B20: (a) | D20: Contractor’s establishment, management, management support, assistance, coaching, guidance, mentoring and supervision of Targeted Enterprises | E20: month | F20: 18 | G20: 0 | H20: =F20*G20 -> 0
B21: (b) | D21: Targeted Enterprise Construction Manager | E21: Person.Month | F21: 18 | G21: 0 | H21: =F21*G21 -> 0
B22: (c) | D22: Targeted Enterprise Site Supervisors | E22: Person.Month | F22: 18 | G22: 0 | H22: =F22*G22 -> 0
A23: D10.05 | D23: Construction Works by Targeted Enterprises
B24: (a) | D24: Payments associated with the construction works carried out by Targeted Enterprise subcontractors of CIDB 1 and 2 contractor grading designation appointed in terms of Section D | E24: provisional sum | F24: Prov | G24: Sum | H24: R5,067,131.25
B25: (b) | D25: Handling costs and profit in respect of payment associated with sub-item D10.05(a) | E25: percentage (%) | F25: =H24 -> R5,067,131.25 | G25: 0% | H25: =F25*G25 -> 0
B26: (c) | D26: Fluctuation between the main contractor’s rates and that of the Targeted Enterprise subcontractors | E26: lump sum | F26: lump | G26: sum | H26: 0
B27: (d) | D27: Preliminary and General Obligations of Targeted Enterprise sub-contractors appointed in terms of Section D | E27: lump sum | F27: lump | G27: sum | H27: 0
A28: D10.06 | D28: Training, coaching, guidance, mentoring and assistance
B29: (a) | D29: Training Costs
C30: (ii) | D30: Accredited generic skills training | E30: provisional sum | F30: Prov | G30: Sum | H30: R200,000.00
C31: (iii) | D31: Community skills training | E31: provisional sum | F31: Prov | G31: Sum | H31: R100,000.00
C32: (iv) | D32: Handling cost and profit in respect of subitems D10.06(a)(i), (ii) and (iii) | E32: percentage (%) | F32: =H30+H31 -> R300,000.00 | G32: 0% | H32: =F32*G32 -> 0
B33: (c) | D33: Other costs during training (Transport Cost) | E33: provisional sum | F33: Prov | G33: Sum | H33: R30,000.00
B34: (d) | D34: Training venue | E34: lump sum | F34: lump | G34: sum | H34: 0
A35: TOTAL CARRIED FORWARD TO SUMMARY | H35: =SUM(H7:H34) -> R6,271,131.25

Sheet Summary of Pricing
A1: C2.3 SUMMARY OF PRICING SCHEDULE
A3: CONTRACT SANRAL N.012-150-2020/1
A4: FOR RESURFACING OF NATIONAL ROUTE N12 SECTION 15 FROM WOLMARANSSTAD (KM 0.0) TO KM 46.0
A6: GENERAL
A7: C1.2 | B7: GENERAL REQUIREMENTS AND PROVISIONS | C7: ='C1.2'!H58 -> R575,000.00
A8: C1.3 | B8: CONTRACTOR’S SITE ESTABLISHMENT AND GENERAL OBLIGATIONS | C8: ='C1.3'!H22 -> R250,000.00
A9: C1.4 | B9: FACILITIES FOR THE ENGINEER | C9: ='C1.4'!G73 -> R140,000.00
A10: C1.5 | B10: ACCOMMODATION OF TRAFFIC | C10: ='C1.5'!I49 -> R100,000.00
A11: C1.6 | B11: CLEARING AND GRUBBING | C11: ='C1.6'!G18 -> R0.00
A12: C1.7 | B12: LOADING AND HAULING | C12: ='C1.7'!H19 -> R0.00 | D12: =SUM(C7:C12) -> R1,065,000.00
A14: SERVICES
A15: C2.1 | B15: GENERAL REQUIREMENTS AND TRENCHING FOR SERVICES | C15: ='C2.1'!H12 -> R100,000.00
D16: =SUM(C15:C16) -> R100,000.00
A18: DRAINAGE
A19: C3.1 | B19: DRAINS | C19: ='C3.1'!H48 -> R10,000.00
A20: C3.2 | B20: CULVERTS | C20: ='C3.2'!H28 -> R0.00
D21: =SUM(C19:C21) -> R10,000.00
A23: EARTHWORKS AND PAVEMENT LAYERS MATERIALS
A24: C4.1 | B24: BORROW MATERIALS | C24: ='C4.1'!H14 -> R0.00
A25: C4.3 | B25: EXISTING ROAD MATERIALS | C25: ='C4.3'!I26 -> R0.00
A26: C4.4 | B26: COMMERCIAL MATERIALS | C26: ='C4.4'!H18 -> R0.00
D27: =SUM(C24:C27) -> R0.00
A29: EARTHWORKS AND PAVEMENT LAYERS CONSTRUCTION
A30: C5.1 | B30: ROADBED | C30: ='C5.1'!I15 -> R0.00
A31: C5.3 | B31: ROAD PAVEMENT LAYERS | C31: ='C5.3'!H22 -> R0.00
A32: C5.4 | B32: STABILISATION | C32: ='C5.4'!H17 -> R0.00
D33: =SUM(C30:C33) -> R0.00
A35: PRETREATMENT AND REPAIR EXISTING LAYERS
A36: C8.1 | B36: PRIME COAT | C36: ='C8.1'!G15 -> R0.00
A37: C8.8 | B37: PATCHING AND EDGE BREAK REPAIR | C37: ='C8.8'!H33 -> R0.00
D38: =SUM(C36:C38) -> R0.00
A40: ASPHALT LAYERS
A41: C9.1 | B41: ASPHALT LAYERS | C41: ='C9.1'!H38 -> R0.00 | D41: =SUM(C41) -> R0.00
A43: SURFACE TREATMENTS
A44: C10.1 | B44: GENERAL REQUIREMENTS FOR SURFACE TREATMENTS | C44: ='C10.1'!H24 -> R0.00 | D44: =SUM(C44) -> R0.00
A46: ANCILLIARY ROAD WORKS
A47: C11.1 | B47: PITCHING, STONEWORK, CAST IN SITU CONCRETE FOR PROTECTION AGAINST EROSION | C47: ='C11.1'!H11 -> R0.00
A48: C11.2 | B48: NON-STRUCTURAL GABIONS | C48: ='C11.2'!H19 -> R0.00
A49: C11.4 | B49: ROAD RESTRAINT SYSTEMS | C49: ='C11.4'!H22 -> R0.00
A50: C11.6 | B50: ROAD SIGNS | C50: ='C11.6'!H25 -> R0.00
A51: C11.7 | B51: ROAD MARKINGS AND ROAD STUDS | C51: ='C11.7'!G25 -> R0.00
A52: C11.9 | B52: FINISHING THE ROAD AND ROAD RESERVE AND TREATING OLD ROADS | C52: ='C11.9'!G12 -> R0.00 | D52: =SUM(C47:C52) -> R0.00
A54: STRUCTURES
A55: C13.7 | B55: JOINTS | C55: ='C13.7'!H13 -> R0.00
D56: =SUM(C55:C56) -> R0.00
A59: QUALITY ASSURANCE
A60: C20.1 | B60: TESTING MATERIALS AND JUDGEMENT OF WORKMANSHIP | C60: ='C20.1'!I9 -> R200,000.00 | D60: =SUM(C60) -> R200,000.00
A62: SECTION D: STAKEHOLDER AND COMMUNITY LIAISON, AND TARGET LABOUR AND TARGETED ENTERPRISES UTILISATION AND DEVELOPMENT
A63: D1010 | B63: TRAINING, COACHING, GUIDANCE, MENTORING AND ASSISTANCE | C63: ='Sect D - D1000'!H35 -> R6,271,131.25 | D63: =SUM(C63) -> R6,271,131.25
B66: SUBTOTAL A | C66: =SUM(D12+D16+D21+D27+D33+D38+D41+D44+D52+D56+D60+D63) -> R7,646,131.25
B69: CONTRACT SKILLS DEVELOPMENT GOAL:
B70: 0.25% of Subtotal A | C70: =0.25/100*C66 -> R19,115.33
B72: SUBTOTAL B | C72: =C66+C70 -> R7,665,246.58
B75: VALUE ADDED TAX:
B76: 15% of Subtotal | C76: =C72*0.15 -> R1,149,786.99
B78: TOTAL CARRIED TO C.1.1.1 : FORM OF OFFER | C78: =C72+C76 -> R8,815,033.56
B84: SIGNED BY TENDERER:
